[Event "Czech Open-E Teams 2022"]
[Site "Pardubice"]
[Date "2022.07.16"]
[Round "4.22"]
[White "Trepka, Jan"]
[Black "Oresky, Jan"]
[Result "1/2-1/2"]
[ECO "E00"]
[WhiteElo "2141"]
[BlackElo "2274"]
[Annotator "ChessBase"]
[PlyCount "58"]
[EventDate "2022.07.14"]
[EventType "team-tourn"]
[EventCountry "CZE"]
[SourceTitle "playchess.com"]
[Source "ChessBase"]
[SourceQuality "1"]
[TimeControl "5400+30"]

1. d4 {[%emt 0:00:04]} Nf6 {[%emt 0:02:06]} 2. c4 {[%emt 0:00:24]} e6 {[%emt 0:00:13]} 3. a3 {[%emt 0:01:29]} b6 {[%emt 0:00:19]} 4. Nc3 {[%emt 0:00:30]} Bb7 {[%emt 0:00:25]} 5. Bf4 {[%emt 0:01:54]} Be7 {[%emt 0:01:20]} 6. Nf3 {[%emt 0:01:57]} O-O {[%emt 0:04:34]} 7. Qc2 {[%emt 0:03:44]} d5 {[%emt 0:08:41]} 8. cxd5 {[%emt 0:11:23]} exd5 {[%emt 0:00:32]} 9. e3 {[%emt 0:02:26]} c5 {[%emt 0:02:32]} 10. Be2 {[%emt 0:01:56]} Nc6 {[%emt 0:04:49]} 11. O-O {[%emt 0:02:09]} Rc8 {[%emt 0:00:16]} 12. Rfd1 {[%emt 0:02:15]} Re8 {[%emt 0:13:44]} 13. Ne5 {[%emt 0:06:45]} cxd4 {[%emt 0:22:58]} 14. Nxc6 {[%emt 0:08:28]} Bxc6 {[%emt 0:00:34]} 15. exd4 {[%emt 0:00:45]} Bd6 {[%emt 0:04:24]} 16. Bxd6 {[%emt 0:06:35]} Qxd6 {[%emt 0:00:06]} 17. Rac1 {[%emt 0:00:41]} Bd7 {[%emt 0:04:20]} 18. Bf3 {[%emt 0:04:49]} Bg4 {[%emt 0:04:28]} 19. Qd3 {[%emt 0:03:04]} Qf4 {[%emt 0:03:52]} 20. Bxg4 {[%emt 0:06:02]} Qxg4 {[%emt 0:07:41]} 21. h3 {[%emt 0:02:12]} Qg5 {[%emt 0:01:49]} 22. Rc2 {[%emt 0:11:58]} Nh5 {[%emt 0:02:03]} 23. Qf3 {[%emt 0:04:30]} Nf4 {[%emt 0:01:12]} 24. g3 {[%emt 0:01:36]} Qg6 {[%emt 0:04:18]} 25. Rcd2 {[%emt 0:01:05]} Nxh3+ {[%emt 0:00:08]} 26. Kg2 {[%emt 0:00:20]} Ng5 {[%emt 0:00:06]} 27. Qxd5 {[%emt 0:00:43]} Ne6 {[%emt 0:00:49]} 28. Qf3 {[%emt 0:02:56]} Ng5 {[%emt 0:01:31]} 29. Qd3 {[%emt 0:02:13]} Ne4 {[%emt 0:01:47]} 1/2-1/2

[Event "Czech Open-E Teams 2022"]
[Site "Pardubice"]
[Date "2022.07.16"]
[Round "4.23"]
[White "Vedral, Oldrich"]
[Black "Hejl, Jaroslav"]
[Result "1-0"]
[ECO "B33"]
[WhiteElo "2268"]
[BlackElo "2125"]
[Annotator "ChessBase"]
[PlyCount "47"]
[EventDate "2022.07.14"]
[EventType "team-tourn"]
[EventCountry "CZE"]
[SourceTitle "playchess.com"]
[Source "ChessBase"]
[SourceQuality "1"]
[TimeControl "5400+30"]

1. e4 {[%emt 0:00:22]} c5 {[%emt 0:00:47]} 2. Nf3 {[%emt 0:00:17]} Nc6 {[%emt 0:00:16]} 3. d4 {[%emt 0:00:19]} cxd4 {[%emt 0:00:18]} 4. Nxd4 {[%emt 0:00:31]} Nf6 {[%emt 0:00:24]} 5. Nc3 {[%emt 0:00:22]} g6 {[%emt 0:00:52]} 6. Nxc6 {[%emt 0:00:25]} bxc6 {[%emt 0:00:10]} 7. e5 {[%emt 0:00:18]} Ng8 {[%emt 0:01:33]} 8. Bc4 {[%emt 0:01:33]} Bg7 {[%emt 0:00:30]} 9. Qf3 {[%emt 0:07:16]} f5 {[%emt 0:00:29]} 10. Bf4 {[%emt 0:05:16]} Qa5 11. O-O {[%emt 0:00:00]} Bxe5 {[%emt 0:18:22]} 12. b4 {[%emt 0:00:00]} Qc7 {[%emt 0:01:26]} 13. Nb5 {[%emt 0:09:15]} cxb5 {[%emt 0:11:43]} 14. Bxe5 {[%emt 0:00:21]} Bb7 {[%emt 0:00:54]} 15. Bxc7 {[%emt 0:13:02]} Bxf3 {[%emt 0:00:08]} 16. Bxg8 {[%emt 0:00:11]} Rxg8 {[%emt 0:03:23]} 17. gxf3 {[%emt 0:00:07]} d6 {[%emt 0:04:42]} 18. a4 {[%emt 0:03:18]} Rc8 {[%emt 0:01:20]} 19. Ba5 {[%emt 0:00:23]} bxa4 {[%emt 0:02:51]} 20. Rfc1 {[%emt 0:01:01]} Rc3 {[%emt 0:01:09]} 21. Rxa4 {[%emt 0:00:09]} Kd7 {[%emt 0:03:04]} 22. b5 {[%emt 0:01:31]} Rc5 {[%emt 0:00:28]} 23. c4 {[%emt 0:00:46]} Rgc8 {[%emt 0:04:51]} 24. Bd2 {[%emt 0:00:16]} 1-0

[Event "Czech Open-E Teams 2022"]
[Site "Pardubice"]
[Date "2022.07.16"]
[Round "4.24"]
[White "Fiala, Jan"]
[Black "Cuhra, Martin"]
[Result "0-1"]
[ECO "B35"]
[WhiteElo "2019"]
[BlackElo "2225"]
[Annotator "ChessBase"]
[PlyCount "88"]
[EventDate "2022.07.14"]
[EventType "team-tourn"]
[EventCountry "CZE"]
[SourceTitle "playchess.com"]
[Source "ChessBase"]
[SourceQuality "1"]
[TimeControl "5400+30"]

1. e4 {[%emt 0:01:41]} c5 {[%emt 0:00:18]} 2. Nf3 {[%emt 0:00:03]} g6 {[%emt 0:00:06]} 3. d4 {[%emt 0:00:13]} cxd4 {[%emt 0:00:51]} 4. Nxd4 {[%emt 0:00:03]} Bg7 {[%emt 0:00:19]} 5. Nc3 {[%emt 0:01:09]} Nc6 {[%emt 0:00:15]} 6. Be3 {[%emt 0:00:08]} Nf6 {[%emt 0:00:11]} 7. Bc4 {[%emt 0:00:08]} O-O {[%emt 0:00:27]} 8. Bb3 {[%emt 0:00:09]} d6 {[%emt 0:00:46]} 9. f3 {[%emt 0:00:28]} Bd7 {[%emt 0:00:12]} 10. Qd2 {[%emt 0:00:13]} Nxd4 {[%emt 0:00:12]} 11. Bxd4 {[%emt 0:00:12]} b5 {[%emt 0:00:01]} 12. a4 {[%emt 0:04:24]} b4 {[%emt 0:05:12]} 13. Nd5 {[%emt 0:00:17]} Nxd5 {[%emt 0:00:25]} 14. Bxg7 {[%emt 0:00:34]} Kxg7 {[%emt 0:00:16]} 15. exd5 {[%emt 0:00:17]} a5 {[%emt 0:08:20]} 16. Qd4+ {[%emt 0:13:37]} f6 {[%emt 0:04:19]} 17. O-O {[%emt 0:01:35]} Qc7 {[%emt 0:02:01]} 18. Rfe1 {[%emt 0:01:20]} Rfe8 {[%emt 0:01:29]} 19. Re2 {[%emt 0:00:38]} Qa7 {[%emt 0:01:09]} 20. Qxa7 {[%emt 0:01:49]} Rxa7 {[%emt 0:00:08]} 21. Rae1 {[%emt 0:00:16]} Kf7 {[%emt 0:01:39]} 22. Kf2 {[%emt 0:01:05]} Rc7 {[%emt 0:00:32]} 23. g4 {[%emt 0:10:39]} Bc8 {[%emt 0:03:45]} 24. Rd2 {[%emt 0:26:18]} Rh8 {[%emt 0:03:21]} 25. h3 {[%emt 0:02:36]} h5 {[%emt 0:05:05]} 26. Kg3 {[%emt 0:01:52]} hxg4 {[%emt 0:02:44]} 27. hxg4 {[%emt 0:00:14]} Bb7 {[%emt 0:05:04]} 28. Rh2 {[%emt 0:05:27]} Rxh2 {[%emt 0:00:46]} 29. Kxh2 {[%emt 0:00:02]} Rc5 {[%emt 0:01:55]} 30. Rd1 {[%emt 0:00:14]} Ba6 {[%emt 0:00:32]} 31. Rd4 {[%emt 0:00:29]} Rc8 {[%emt 0:02:24]} 32. Kg3 {[%emt 0:04:47]} Rh8 {[%emt 0:02:53]} 33. Kg2 {[%emt 0:00:30]} Rc8 {[%emt 0:03:13]} 34. Kg3 {[%emt 0:04:09]} Ke8 {[%emt 0:00:31]} 35. Re4 {[%emt 0:05:40]} Kd7 {[%emt 0:01:03]} 36. g5 {[%emt 0:04:04]} fxg5 {[%emt 0:02:55]} 37. Kg4 {[%emt 0:03:07]} Rf8 {[%emt 0:01:56]} 38. Kxg5 {[%emt 0:00:31]} Rxf3 {[%emt 0:00:44]} 39. Rg4 {[%emt 0:06:29]} Be2 {[%emt 0:06:00]} 40. Rg2 {[%emt 0:00:27]} Bf1 {[%emt 0:00:51]} 41. Rg1 {[%emt 0:00:32]} Bh3 {[%emt 0:06:24]} 42. Kxg6 {[%emt 0:00:18]} Bf5+ {[%emt 0:00:21]} 43. Kg5 Rf2 44. Rc1 Be4 0-1

[Event "Czech Open-E Teams 2022"]
[Site "Pardubice"]
[Date "2022.07.16"]
[Round "4.25"]
[White "Buchcar, Tomas"]
[Black "Vojta, Jakub"]
[Result "1/2-1/2"]
[ECO "B20"]
[WhiteElo "2207"]
[BlackElo "2326"]
[Annotator "ChessBase"]
[PlyCount "46"]
[EventDate "2022.07.14"]
[EventType "team-tourn"]
[EventCountry "CZE"]
[SourceTitle "playchess.com"]
[Source "ChessBase"]
[SourceQuality "1"]
[TimeControl "5400+30"]

1. e4 {[%emt 0:00:04]} c5 {[%emt 0:00:18]} 2. Be2 {[%emt 0:00:23]} Nc6 {[%emt 0:01:10]} 3. f4 {[%emt 0:01:01]} g6 {[%emt 0:00:46]} 4. Nf3 {[%emt 0:00:41]} Bg7 {[%emt 0:00:10]} 5. d3 {[%emt 0:00:58]} d6 {[%emt 0:06:29]} 6. O-O {[%emt 0:00:42]} e6 {[%emt 0:06:04]} 7. Qe1 {[%emt 0:01:55]} b5 {[%emt 0:03:12]} 8. Nbd2 {[%emt 0:07:25]} Rb8 {[%emt 0:04:35]} 9. Bd1 {[%emt 0:12:13]} Nge7 {[%emt 0:02:04]} 10. Kh1 {[%emt 0:18:25]} a5 {[%emt 0:08:01]} 11. a4 {[%emt 0:12:27]} b4 {[%emt 0:01:37]} 12. Rb1 {[%emt 0:05:53]} d5 {[%emt 0:08:16]} 13. b3 {[%emt 0:00:19]} Nd4 {[%emt 0:01:14]} 14. Qf2 {[%emt 0:03:29]} dxe4 {[%emt 0:04:55]} 15. Nxe4 {[%emt 0:01:23]} Qc7 {[%emt 0:01:53]} 16. Ne5 {[%emt 0:02:33]} O-O {[%emt 0:01:06]} 17. Bb2 {[%emt 0:02:50]} Nef5 {[%emt 0:05:06]} 18. Ng4 {[%emt 0:01:06]} Qe7 {[%emt 0:00:50]} 19. Ne5 {[%emt 0:01:16]} Bb7 {[%emt 0:00:50]} 20. Re1 {[%emt 0:05:14]} Rfd8 {[%emt 0:01:18]} 21. Kg1 {[%emt 0:02:29]} Rbc8 {[%emt 0:01:07]} 22. Nc4 {[%emt 0:00:38]} Qc7 {[%emt 0:00:21]} 23. Bg4 {[%emt 0:02:48]} Bd5 {[%emt 0:08:29]} 1/2-1/2

[Event "Czech Open-E Teams 2022"]
[Site "Pardubice"]
[Date "2022.07.16"]
[Round "4.26"]
[White "Virostko, Petr"]
[Black "Bach, Markus"]
[Result "1/2-1/2"]
[ECO "B12"]
[WhiteElo "2326"]
[BlackElo "2192"]
[Annotator "ChessBase"]
[PlyCount "32"]
[EventDate "2022.07.14"]
[EventType "team-tourn"]
[EventCountry "CZE"]
[SourceTitle "playchess.com"]
[Source "ChessBase"]
[SourceQuality "1"]
[TimeControl "5400+30"]

1. e4 {[%emt 0:00:02]} c6 {[%emt 0:01:32]} 2. d4 {[%emt 0:00:07]} d5 {[%emt 0:00:20]} 3. e5 {[%emt 0:00:27]} Bf5 {[%emt 0:00:59]} 4. c4 {[%emt 0:00:27]} Na6 {[%emt 0:01:17]} 5. a3 {[%emt 0:06:16]} Nc7 {[%emt 0:03:43]} 6. Nc3 {[%emt 0:01:48]} dxc4 {[%emt 0:03:22]} 7. Bxc4 {[%emt 0:01:01]} e6 {[%emt 0:00:18]} 8. Nge2 {[%emt 0:03:59]} Ne7 {[%emt 0:11:41]} 9. Ng3 {[%emt 0:01:53]} Bg6 {[%emt 0:07:14]} 10. h4 {[%emt 0:05:32]} h6 {[%emt 0:03:42]} 11. h5 {[%emt 0:04:07]} Bh7 {[%emt 0:02:10]} 12. Be3 {[%emt 0:04:22]} Ned5 {[%emt 0:08:18]} 13. Nce4 {[%emt 0:04:52]} Qd7 {[%emt 0:06:08]} 14. O-O {[%emt 0:13:54]} O-O-O {[%emt 0:02:24]} 15. Qf3 {[%emt 0:03:33]} f5 {[%emt 0:14:43]} 16. Nc3 {[%emt 0:04:10]} g5 {[%emt 0:00:26]} 1/2-1/2

[Event "Czech Open-E Teams 2022"]
[Site "Pardubice"]
[Date "2022.07.16"]
[Round "4.27"]
[White "Zimmermann, Rene"]
[Black "Nytra, Ondrej"]
[Result "1-0"]
[ECO "D02"]
[WhiteElo "2201"]
[BlackElo "2214"]
[Annotator "ChessBase"]
[PlyCount "53"]
[EventDate "2022.07.14"]
[EventType "team-tourn"]
[EventCountry "CZE"]
[SourceTitle "playchess.com"]
[Source "ChessBase"]
[SourceQuality "1"]
[TimeControl "5400+30"]

1. d4 {[%emt 0:00:03]} d5 {[%emt 0:00:05]} 2. Nf3 {[%emt 0:00:52]} c6 {[%emt 0:00:12]} 3. c4 {[%emt 0:00:10]} e6 {[%emt 0:00:03]} 4. Qc2 {[%emt 0:00:13]} dxc4 {[%emt 0:00:09]} 5. a4 {[%emt 0:00:34]} Bb4+ {[%emt 0:02:05]} 6. Bd2 {[%emt 0:00:23]} Bxd2+ {[%emt 0:00:04]} 7. Nbxd2 {[%emt 0:00:22]} b5 {[%emt 0:00:05]} 8. e3 {[%emt 0:01:12]} a5 {[%emt 0:11:20]} 9. axb5 {[%emt 0:02:22]} cxb5 {[%emt 0:00:09]} 10. b3 {[%emt 0:00:04]} Nf6 {[%emt 0:05:37]} 11. bxc4 {[%emt 0:00:29]} b4 {[%emt 0:00:06]} 12. Bd3 {[%emt 0:04:49]} O-O {[%emt 0:08:28]} 13. O-O {[%emt 0:00:47]} Bd7 {[%emt 0:00:02]} 14. Rfb1 {[%emt 0:06:21]} Qe7 {[%emt 0:01:00]} 15. Ne5 {[%emt 0:20:05]} Rc8 {[%emt 0:01:11]} 16. c5 Nc6 {[%emt 0:38:58]} 17. Nxd7 {[%emt 0:02:10]} Nxd7 {[%emt 0:00:23]} 18. Bxh7+ {[%emt 0:00:11]} Kh8 {[%emt 0:00:04]} 19. Be4 {[%emt 0:00:25]} f5 {[%emt 0:00:09]} 20. Bxc6 {[%emt 0:00:07]} Rxc6 {[%emt 0:00:03]} 21. Rxb4 {[%emt 0:00:07]} e5 {[%emt 0:00:28]} 22. Rb7 {[%emt 0:04:03]} Rb8 {[%emt 0:04:34]} 23. Rxb8+ {[%emt 0:03:10]} Nxb8 {[%emt 0:00:03]} 24. Qxf5 {[%emt 0:00:09]} exd4 {[%emt 0:00:57]} 25. exd4 {[%emt 0:00:10]} Rf6 {[%emt 0:00:03]} 26. Qe5 {[%emt 0:01:58]} Qb7 {[%emt 0:00:03]} 27. Rb1 {[%emt 0:00:15]} 1-0

[Event "Czech Open-E Teams 2022"]
[Site "Pardubice"]
[Date "2022.07.16"]
[Round "4.28"]
[White "Vojta, Tomas"]
[Black "Bach, Ulf-Gunter"]
[Result "1-0"]
[ECO "B12"]
[WhiteElo "2319"]
[BlackElo "2014"]
[Annotator "ChessBase"]
[PlyCount "33"]
[EventDate "2022.07.14"]
[EventType "team-tourn"]
[EventCountry "CZE"]
[SourceTitle "playchess.com"]
[Source "ChessBase"]
[SourceQuality "1"]
[TimeControl "5400+30"]

1. e4 {[%emt 0:00:04]} c6 {[%emt 0:00:08]} 2. d4 {[%emt 0:00:12]} d5 {[%emt 0:00:19]} 3. e5 {[%emt 0:00:12]} Bf5 {[%emt 0:00:31]} 4. Nc3 {[%emt 0:00:39]} e6 {[%emt 0:03:33]} 5. g4 {[%emt 0:00:17]} Bg6 {[%emt 0:00:31]} 6. Nge2 {[%emt 0:00:07]} Bb4 {[%emt 0:05:04]} 7. h4 {[%emt 0:02:32]} Be4 {[%emt 0:02:11]} 8. Rh3 {[%emt 0:02:14]} h5 {[%emt 0:00:58]} 9. Ng3 {[%emt 0:08:00]} Nh6 {[%emt 0:31:39]} 10. Nxh5 {[%emt 0:06:17]} Kf8 {[%emt 0:02:25]} 11. a3 {[%emt 0:10:16]} Bxc3+ {[%emt 0:03:29]} 12. bxc3 {[%emt 0:00:21]} Bxc2 {[%emt 0:10:00]} 13. Qxc2 {[%emt 0:00:39]} Nxg4 {[%emt 0:00:06]} 14. Bg5 {[%emt 0:03:57]} f6 {[%emt 0:09:11]} 15. Qg6 {[%emt 0:02:37]} Qe7 {[%emt 0:00:20]} 16. exf6 {[%emt 0:01:18]} gxf6 {[%emt 0:03:07]} 17. Nxf6 {[%emt 0:01:25]} 1-0

[Event "Czech Open-E Teams 2022"]
[Site "Pardubice"]
[Date "2022.07.16"]
[Round "4.31"]
[White "Buran, Jaroslav"]
[Black "Simet, Martin"]
[Result "1/2-1/2"]
[ECO "A46"]
[WhiteElo "2038"]
[BlackElo "2155"]
[Annotator "ChessBase"]
[PlyCount "41"]
[EventDate "2022.07.14"]
[EventType "team-tourn"]
[EventCountry "CZE"]
[SourceTitle "playchess.com"]
[Source "ChessBase"]
[SourceQuality "1"]
[TimeControl "5400+30"]

1. d4 {[%emt 0:19:17]} Nf6 {[%emt 0:00:00]} 2. Nf3 {[%emt 0:00:39]} e6 {[%emt 0:00:53]} 3. e3 {[%emt 0:00:36]} b6 {[%emt 0:00:11]} 4. Bd3 {[%emt 0:00:06]} Bb7 {[%emt 0:00:14]} 5. O-O c5 {[%emt 0:21:22]} 6. c4 {[%emt 0:00:00]} Be7 {[%emt 0:00:49]} 7. Nc3 {[%emt 0:00:00]} d5 {[%emt 0:02:48]} 8. cxd5 {[%emt 0:00:00]} exd5 {[%emt 0:00:40]} 9. b3 {[%emt 0:00:00]} O-O {[%emt 0:02:00]} 10. Bb2 {[%emt 0:00:00]} Nc6 {[%emt 0:02:57]} 11. Rc1 {[%emt 0:00:00]} Na5 {[%emt 0:03:52]} 12. Ne5 {[%emt 0:00:00]} a6 {[%emt 0:04:11]} 13. dxc5 {[%emt 0:00:00]} bxc5 {[%emt 0:01:39]} 14. Na4 {[%emt 0:00:00]} Rc8 {[%emt 0:04:29]} 15. Qe2 {[%emt 0:06:42]} c4 {[%emt 0:07:19]} 16. bxc4 {[%emt 0:02:52]} Nxc4 {[%emt 0:00:58]} 17. Nxc4 {[%emt 0:01:15]} dxc4 {[%emt 0:00:13]} 18. Bxc4 {[%emt 0:00:35]} Qa5 {[%emt 0:05:04]} 19. Bb3 {[%emt 0:01:52]} Qg5 {[%emt 0:01:07]} 20. f3 {[%emt 0:00:41]} Rce8 {[%emt 0:01:38]} 21. Rfd1 {[%emt 0:08:00]} 1/2-1/2

[Event "Czech Open-E Teams 2022"]
[Site "Pardubice"]
[Date "2022.07.16"]
[Round "4.32"]
[White "Rut, Vojtech"]
[Black "Janicek, Lubomir"]
[Result "1-0"]
[ECO "D02"]
[WhiteElo "2080"]
[BlackElo "1828"]
[Annotator "ChessBase"]
[PlyCount "69"]
[EventDate "2022.07.14"]
[EventType "team-tourn"]
[EventCountry "CZE"]
[SourceTitle "playchess.com"]
[Source "ChessBase"]
[SourceQuality "1"]
[TimeControl "5400+30"]

1. d4 {[%emt 0:09:56]} Nf6 {[%emt 0:00:12]} 2. Nf3 {[%emt 0:00:01]} d5 {[%emt 0:00:39]} 3. Bf4 {[%emt 0:00:01]} c6 {[%emt 0:01:51]} 4. e3 {[%emt 0:01:02]} Qb6 {[%emt 0:01:00]} 5. Qc1 {[%emt 0:00:40]} Nh5 {[%emt 0:00:39]} 6. Bg5 {[%emt 0:01:11]} h6 {[%emt 0:03:26]} 7. Bh4 {[%emt 0:00:44]} g5 {[%emt 0:01:07]} 8. Bg3 {[%emt 0:00:09]} Nxg3 {[%emt 0:00:15]} 9. hxg3 {[%emt 0:00:03]} Bg7 {[%emt 0:00:25]} 10. Bd3 {[%emt 0:00:29]} Bg4 {[%emt 0:03:13]} 11. c4 {[%emt 0:01:26]} dxc4 {[%emt 0:05:08]} 12. Bxc4 {[%emt 0:00:29]} Nd7 {[%emt 0:01:27]} 13. Nc3 {[%emt 0:04:56]} Bxf3 {[%emt 0:06:33]} 14. gxf3 {[%emt 0:00:09]} e5 {[%emt 0:00:38]} 15. d5 {[%emt 0:01:38]} O-O {[%emt 0:02:59]} 16. Qc2 {[%emt 0:03:05]} Qb4 {[%emt 0:02:56]} 17. Bb3 {[%emt 0:03:34]} Nc5 {[%emt 0:03:46]} 18. O-O-O {[%emt 0:07:54]} Nxb3+ {[%emt 0:01:21]} 19. Qxb3 {[%emt 0:03:10]} Qxb3 {[%emt 0:03:28]} 20. axb3 {[%emt 0:00:01]} cxd5 {[%emt 0:03:59]} 21. Rxd5 {[%emt 0:01:26]} Rfd8 {[%emt 0:01:01]} 22. Rhd1 {[%emt 0:00:22]} Bf6 {[%emt 0:01:25]} 23. Rd7 {[%emt 0:01:34]} Kg7 {[%emt 0:09:50]} 24. Rxb7 {[%emt 0:01:19]} Rxd1+ {[%emt 0:01:22]} 25. Kxd1 {[%emt 0:00:06]} h5 {[%emt 0:00:15]} 26. Ke2 {[%emt 0:07:00]} h4 {[%emt 0:00:11]} 27. Kf1 {[%emt 0:04:07]} h3 {[%emt 0:03:19]} 28. Kg1 {[%emt 0:03:36]} Rd8 {[%emt 0:01:55]} 29. Rxa7 {[%emt 0:04:33]} Rd2 {[%emt 0:01:09]} 30. Ne4 {[%emt 0:01:02]} Rxb2 {[%emt 0:00:31]} 31. Rb7 {[%emt 0:00:16]} Bd8 {[%emt 0:02:02]} 32. g4 {[%emt 0:21:33]} Kg6 {[%emt 0:03:43]} 33. b4 {[%emt 0:05:52]} f5 {[%emt 0:05:00]} 34. gxf5+ {[%emt 0:00:32]} Kxf5 {[%emt 0:00:55]} 35. Rd7 1-0

[Event "Czech Open-E Teams 2022"]
[Site "Pardubice"]
[Date "2022.07.16"]
[Round "4.33"]
[White "Goroshkov, Maksym"]
[Black "Vavra, Pavel"]
[Result "1/2-1/2"]
[ECO "C01"]
[WhiteElo "2240"]
[BlackElo "2317"]
[Annotator "ChessBase"]
[PlyCount "21"]
[EventDate "2022.07.14"]
[EventType "team-tourn"]
[EventCountry "CZE"]
[SourceTitle "playchess.com"]
[Source "ChessBase"]
[SourceQuality "1"]
[TimeControl "5400+30"]

1. e4 {[%emt 0:02:53]} e6 {[%emt 0:00:06]} 2. d4 {[%emt 0:00:15]} d5 {[%emt 0:00:06]} 3. exd5 {[%emt 0:00:04]} exd5 {[%emt 0:00:07]} 4. c4 {[%emt 0:00:02]} Bb4+ {[%emt 0:01:07]} 5. Nc3 {[%emt 0:00:56]} Nf6 {[%emt 0:00:16]} 6. Nf3 {[%emt 0:00:06]} O-O {[%emt 0:00:32]} 7. Be2 {[%emt 0:06:52]} dxc4 {[%emt 0:03:51]} 8. Bxc4 {[%emt 0:00:04]} Nc6 {[%emt 0:10:59]} 9. O-O {[%emt 0:00:27]} Bg4 {[%emt 0:01:36]} 10. Be3 {[%emt 0:04:55]} Qd6 {[%emt 0:06:50]} 11. Be2 {[%emt 0:06:52]} 1/2-1/2

[Event "Czech Open-E Teams 2022"]
[Site "Pardubice"]
[Date "2022.07.16"]
[Round "4.34"]
[White "Bartos, Jan"]
[Black "Kovalskyi, Roman"]
[Result "1-0"]
[ECO "D41"]
[WhiteElo "2142"]
[BlackElo "2056"]
[Annotator "ChessBase"]
[PlyCount "109"]
[EventDate "2022.07.14"]
[EventType "team-tourn"]
[EventCountry "CZE"]
[SourceTitle "playchess.com"]
[Source "ChessBase"]
[SourceQuality "1"]
[TimeControl "5400+30"]

1. d4 {[%emt 0:00:19]} d5 {[%emt 0:00:03]} 2. Nf3 {[%emt 0:00:09]} Nf6 {[%emt 0:00:06]} 3. c4 {[%emt 0:00:05]} e6 {[%emt 0:00:03]} 4. Nc3 {[%emt 0:00:12]} c5 {[%emt 0:00:06]} 5. cxd5 {[%emt 0:00:10]} cxd4 {[%emt 0:00:04]} 6. Qxd4 {[%emt 0:00:14]} exd5 {[%emt 0:00:04]} 7. Bg5 {[%emt 0:00:19]} Be7 {[%emt 0:00:05]} 8. e3 {[%emt 0:00:11]} Be6 {[%emt 0:00:36]} 9. Rd1 {[%emt 0:01:08]} O-O {[%emt 0:00:38]} 10. Be2 {[%emt 0:00:06]} h6 {[%emt 0:00:21]} 11. Bh4 {[%emt 0:00:30]} Nc6 {[%emt 0:00:05]} 12. Qa4 {[%emt 0:00:26]} Qb6 {[%emt 0:00:10]} 13. Qb5 {[%emt 0:01:15]} Qxb5 {[%emt 0:08:04]} 14. Bxb5 {[%emt 0:01:04]} Rfd8 {[%emt 0:03:20]} 15. O-O {[%emt 0:00:19]} Kf8 {[%emt 0:08:02]} 16. Ne2 {[%emt 0:04:22]} Rac8 {[%emt 0:01:15]} 17. Ned4 {[%emt 0:00:26]} Nxd4 {[%emt 0:01:20]} 18. Nxd4 {[%emt 0:00:15]} Ne4 {[%emt 0:00:31]} 19. Bxe7+ {[%emt 0:01:10]} Kxe7 {[%emt 0:00:04]} 20. Bd3 {[%emt 0:02:12]} a6 {[%emt 0:02:15]} 21. f3 {[%emt 0:03:55]} Nd6 {[%emt 0:04:39]} 22. b3 {[%emt 0:00:18]} h5 {[%emt 0:04:46]} 23. Kf2 {[%emt 0:04:31]} g6 {[%emt 0:01:36]} 24. Ke2 {[%emt 0:00:36]} Rc5 {[%emt 0:02:32]} 25. Rc1 {[%emt 0:02:56]} Rdc8 {[%emt 0:00:26]} 26. Kd2 {[%emt 0:00:16]} Rxc1 {[%emt 0:06:41]} 27. Rxc1 {[%emt 0:00:07]} Rxc1 {[%emt 0:00:03]} 28. Kxc1 {[%emt 0:00:05]} Nc8 {[%emt 0:01:29]} 29. Kd2 {[%emt 0:00:45]} Kd6 {[%emt 0:00:03]} 30. Kc3 {[%emt 0:00:56]} Ne7 {[%emt 0:01:46]} 31. b4 {[%emt 0:02:25]} Nc6 {[%emt 0:02:20]} 32. Nxc6 {[%emt 0:00:42]} Kxc6 {[%emt 0:00:12]} 33. Kd4 {[%emt 0:01:06]} Kd6 {[%emt 0:00:05]} 34. h4 {[%emt 0:04:06]} Bd7 {[%emt 0:05:10]} 35. Be2 {[%emt 0:04:52]} f6 {[%emt 0:27:35]} 36. g4 {[%emt 0:07:14]} Be8 {[%emt 0:02:04]} 37. gxh5 {[%emt 0:02:54]} gxh5 {[%emt 0:00:01]} 38. Bd1 {[%emt 0:00:57]} f5 {[%emt 0:02:08]} 39. f4 {[%emt 0:01:09]} b6 {[%emt 0:02:26]} 40. Bf3 {[%emt 0:02:56]} Bf7 {[%emt 0:00:08]} 41. a4 {[%emt 0:00:38]} a5 {[%emt 0:05:03]} 42. b5 {[%emt 0:00:12]} Be8 {[%emt 0:00:10]} 43. Bxd5 {[%emt 0:00:11]} Bg6 {[%emt 0:00:05]} 44. Bb3 {[%emt 0:01:34]} Be8 {[%emt 0:00:06]} 45. e4 fxe4 {[%emt 0:01:03]} 46. Kxe4 {[%emt 0:04:54]} Kc5 {[%emt 0:00:41]} 47. f5 {[%emt 0:00:24]} Kb4 {[%emt 0:00:06]} 48. Bd1 {[%emt 0:00:05]} Kc3 {[%emt 0:00:46]} 49. f6 {[%emt 0:01:10]} Bg6+ {[%emt 0:00:03]} 50. Ke5 {[%emt 0:00:05]} Kd2 {[%emt 0:00:03]} 51. Bf3 {[%emt 0:00:12]} Kc3 {[%emt 0:00:19]} 52. Ke6 {[%emt 0:00:54]} Kb4 {[%emt 0:00:06]} 53. Bd1 {[%emt 0:00:04]} Kc3 {[%emt 0:00:13]} 54. f7 {[%emt 0:00:07]} Bxf7+ {[%emt 0:00:04]} 55. Kxf7 {[%emt 0:00:05]} 1-0